fUST/lending_fUST_20240805
["ID","MTS","AMOUNT","RATE_DAILY","PERIOD"]
[334121681,1722787208461,1492.87392022,8.939e-05,2]
[334121682,1722787220996,218.32720111,8.939e-05,2]
[334121683,1722787223687,279.83473151,0.00029,120]
[334121684,1722787227585,734.19964902,8.939e-05,2]
[334121685,1722787234987,1093.93450702,8.939e-05,2]
[334121686,1722787246162,1197.8799152,8.921e-05,2]
[334121687,1722787254683,1197.8799152,8.921e-05,2]
[334121688,1722787263619,1197.8799152,8.921e-05,2]
[334121689,1722787271527,1197.8799152,8.921e-05,2]
[334121690,1722787279653,1197.8799152,8.921e-05,2]
[334121691,1722787288926,1197.8799152,8.921e-05,2]
[334121692,1722787290967,10664.1208211,8.43e-05,2]
[334121693,1722787297237,1197.8799152,8.921e-05,2]
[334121694,1722787305360,1197.8799152,8.921e-05,2]
[334121695,1722787305978,1492.87392022,8.921e-05,2]
[334121696,1722787314190,1197.8799152,8.921e-05,2]
[334121697,1722787322416,1197.8799152,8.921e-05,2]
[334121698,1722787323155,334.7625636,8.363e-05,2]
[334121699,1722787323490,1492.87392022,8.921e-05,2]
[334121700,1722787388108,24900.0,8.357e-05,2]
[334121701,1722787428481,1492.87392022,8.921e-05,2]
[334121702,1722787530539,5221.3985395,8.872e-05,2]
[334121703,1722787535482,1492.87392022,8.921e-05,2]
[334121704,1722787561628,742.6861428,8.929e-05,2]
[334121705,1722787566125,31881.0391118,8.884e-05,2]
[334121706,1722787582670,1197.8799152,8.921e-05,2]
[334121707,1722787590581,538.91912471,8.921e-05,2]
[334121708,1722787621233,-1197.8799152,9.011e-05,2]
[334121709,1722787631145,-250.0,9.062e-05,2]
[334121710,1722787631167,-250.0,9.087e-05,2]
[334121711,1722787631189,-250.0,9.112e-05,2]
[334121712,1722787631210,-250.0,9.137e-05,2]
[334121713,1722787631240,-250.0,9.162e-05,2]
[334121714,1722787631262,-250.0,9.187e-05,2]
[334121715,1722787631285,-250.0,9.211e-05,2]
[334121716,1722787631307,-250.0,9.236e-05,2]
[334121717,1722787631329,-250.0,9.261e-05,2]
[334121718,1722787631351,-250.0,9.286e-05,2]
[334121719,1722787631374,-250.0,9.311e-05,2]
[334121720,1722787631395,-250.0,9.336e-05,2]
[334121721,1722787631419,-250.0,9.361e-05,2]
[334121722,1722787631443,-250.0,9.385e-05,2]
[334121723,1722787631465,-250.0,9.41e-05,2]
[334121724,1722787631491,-250.0,9.435e-05,2]
[334121725,1722787631515,-250.0,9.46e-05,2]
[334121726,1722787631536,-250.0,9.485e-05,2]
[334121727,1722787631557,-250.0,9.51e-05,2]
[334121728,1722787631578,-250.0,9.534e-05,2]
[334121729,1722787631599,-300.0,9.998e-05,2]
[334121730,1722787631619,-334.01740455,9.999e-05,2]
[334121731,1722787631639,-288.50805677,9.999e-05,2]
[334121732,1722787631659,-426.9441554,9.999e-05,2]
[334121733,1722787631681,-154.76012181,9.999e-05,2]
[334121734,1722787631702,-403.74175046,9.999e-05,2]
[334121735,1722787631729,-213.05183196,9.999e-05,2]
[334121736,1722787631749,-159.2128529,9.999e-05,2]
[334121737,1722787631770,-205.1151477,9.999e-05,2]
[334121738,1722787631790,-165.53506923,9.999e-05,2]
[334121739,1722787631811,-188.15489136,9.999e-05,2]
[334121740,1722787631832,-163.06705816,9.999e-05,2]
[334121741,1722787631853,-154.72922386,9.999e-05,2]
[334121742,1722787631873,-568.3299453,9.999e-05,2]
[334121743,1722787631894,-180.4790292,9.999e-05,2]
[334121744,1722787631915,-727.15708508,9.999e-05,2]
[334121745,1722787631935,-694.1093999,9.999e-05,2]
[334121746,1722787631956,-196.43766194,9.999e-05,2]
[334121747,1722787631984,-154.83742071,9.999e-05,2]
[334121748,1722787632005,-207.89057461,9.999e-05,2]
[334121749,1722787632031,-679.64563775,9.999e-05,2]
[334121750,1722787632066,-603.79164827,9.999e-05,2]
[334121751,1722787632092,-154.79103211,9.999e-05,2]
[334121752,1722787632117,-434.6287768,9.999e-05,2]
[334121753,1722787632140,-523.02359735,9.999e-05,2]
[334121754,1722787632162,-183.36543967,9.999e-05,2]
[334121755,1722787632184,-494.23715236,9.999e-05,2]
[334121756,1722787632208,-942.45164941,9.999e-05,2]
[334121757,1722787632237,-154.74467129,9.999e-05,2]
[334121758,1722787632257,-412.94081029,0.0001,2]
[334121759,1722787632279,-294.12454179,0.0001,2]
[334121760,1722787632300,-816.2198788,0.0001,2]
[334121761,1722787632322,-201.22648727,0.0001,2]
[334121762,1722787632343,-200.1317292,0.0001,2]
[334121763,1722787632365,-309.39667648,0.0001,2]
[334121764,1722787632386,-959.71445307,0.00010813,2]
[334121765,1722787632407,-154.95256393,0.00010813,2]
[334121766,1722787632429,-218.32720111,0.00010813,2]
[334121767,1722787632453,-13764.66086231,0.00010813,2]
[334121768,1722787641099,-2012.40386214,0.00010813,2]
[334121769,1722787646157,-641.74852752,0.00010813,2]
[334121770,1722787646179,-195.67742902,0.00010813,2]
[334121771,1722787649583,3211.84243408,8.921e-05,2]
[334121772,1722787653178,4711.98211783,8.921e-05,2]
[334121773,1722787716480,1492.87392022,8.921e-05,2]
[334121774,1722787735890,3406.52996529,8.921e-05,2]
[334121781,1722787760474,4345.00861164,8.921e-05,2]
[334121782,1722787765154,-290.3896961,9.999e-05,2]
[334121783,1722787765176,-543.08033697,9.999e-05,2]
[334121784,1722787765198,-155.04552591,9.999e-05,2]
[334121785,1722787765219,-163.05415597,9.999e-05,2]
[334121786,1722787765240,-694.1093999,9.999e-05,2]
[334121787,1722787765261,-493.80576218,9.999e-05,2]
[334121788,1722787765283,-321.01786564,9.999e-05,2]
[334121789,1722787765305,-276.67014324,9.999e-05,2]
[334121790,1722787765326,-412.94081029,0.0001,2]
[334121791,1722787765347,-300.0,0.00010812,2]
[334121792,1722787765372,-300.0,0.00010812,2]
[334121793,1722787765392,-164.41333768,0.00010813,2]
[334121794,1722787765415,-165.53506923,0.00010813,2]
[334121795,1722787765438,-309.3349299,0.00010813,2]
[334121796,1722787765460,-426.85007008,0.00010813,2]
[334121797,1722787765481,-250.0,0.00010813,2]
[334121798,1722787765502,-353.72240741,0.00010813,2]
[334121799,1722787765523,-154.74467129,0.00010813,2]
[334121800,1722787765545,-403.74175046,0.00010813,2]
[334121801,1722787765568,-403.74175046,0.00010813,2]
[334121802,1722787765590,-795.92,0.00010959,2]
[334121803,1722787765619,-424.7,0.00010959,2]
[334121804,1722787765646,-353.91,0.00010959,2]
[334121805,1722787765677,-294.93,0.00010959,2]
[334121806,1722787765699,-245.77,0.00010959,2]
[334121807,1722787765721,-291.54,0.00010959,2]
[334121808,1722787765742,-242.95,0.00010959,2]
[334121809,1722787765765,-202.46,0.00010959,2]
[334121810,1722787765789,-168.71,0.00010959,2]
[334121811,1722787765812,-843.59,0.00010959,2]
[334121812,1722787765834,-420.0,0.00011884,2]
[334121813,1722787765859,-420.0,0.00011893,2]
[334121814,1722787765880,-1874.0772062,0.00011976,2]
[334121815,1722787765900,-6443.22313111,0.00012,2]
[334121816,1722787765922,-2379.1007725,0.0001212,2]
[334121817,1722787765943,-587.0,0.00013061,2]
[334121818,1722787765965,-587.0,0.00013083,2]
[334121819,1722787765987,-191.62470048,0.00013207,2]
[334121820,1722787766009,-512.39377772,0.00013207,2]
[334121821,1722787766033,-3593.21017663,0.00013424,2]
[334121822,1722787767096,-231.69830706,9.999e-05,2]
[334121823,1722787769662,442.35315002,0.00010813,2]
[334121824,1722787795061,305.40389043,0.00010813,2]
[334121882,1722787832916,-694.1093999,0.0001212,2]
[334121885,1722787832929,-288.35565256,0.0001212,2]
[334121990,1722787834037,-119.20767459,0.0001212,2]
[334121992,1722787834050,-159.7242921,0.0001212,2]
[334121994,1722787834061,-412.94081029,0.0001212,2]
[334121996,1722787834073,-159.7242921,0.0001212,2]
[334121998,1722787834085,-165.53506923,0.0001212,2]
[334122000,1722787834096,-2581.58491615,0.00012715,2]
[334122084,1722787838532,-287.38831,0.00012715,2]
[334122422,1722787842639,-215.75763375,0.00012715,2]
[334122424,1722787842651,-6057.08378806,0.00013389,2]
[334122426,1722787842663,-296.34982337,0.00013424,2]
[334122428,1722787842673,-300.0,0.00013488,2]
[334122430,1722787842682,-300.0,0.00013488,2]
[334122432,1722787842692,-1262.406341,0.00013489,2]
[334122434,1722787842701,-7530.18265994,0.00013596,2]
[334122436,1722787842711,-7530.18265994,0.00013597,2]
[334122438,1722787842721,-3889.56,0.00013597,2]
[334122440,1722787842731,-3889.56,0.00013597,2]
[334122442,1722787842741,-7530.18265994,0.00013597,2]
[334122444,1722787842753,-7530.18265994,0.00013598,2]
[334122446,1722787842765,-7530.18265994,0.00013598,2]
[334122448,1722787842776,-6378.30962398,0.00013598,2]
[334122450,1722787842789,-2000.0,0.00013598,2]
[334122452,1722787842799,-150.112233,0.000136,2]
[334122454,1722787842809,-500.0,0.00013657,2]
[334122456,1722787842821,-200.0,0.00013673,2]
[334122459,1722787842833,-126393.85606823,0.00013688,2]
[334122461,1722787842846,-138558.93654677,0.00013688,2]
[334122463,1722787842857,-3889.56,0.00013696,2]
[334122465,1722787842868,-3889.56,0.00013697,2]
[334122467,1722787842880,-3889.56,0.00013697,2]
[334122469,1722787842890,-42009.0122392,0.00013698,5]
[334122471,1722787842900,-500.0,0.00013698,2]
[334122473,1722787842912,-500.0,0.00013698,2]
[334122475,1722787842923,-500.0,0.00013698,2]
[334122477,1722787842933,-500.0,0.00013698,2]
[334122479,1722787842943,-500.0,0.00013698,2]
[334122481,1722787842953,-500.0,0.00013698,2]
[334122483,1722787842963,-500.0,0.00013698,2]
[334122485,1722787842972,-500.0,0.00013698,2]
[334122487,1722787842981,-500.0,0.00013698,2]
[334122489,1722787842992,-500.0,0.00013698,2]
[334122491,1722787843005,-500.0,0.00013698,2]
[334122493,1722787843015,-500.0,0.00013698,2]
[334122495,1722787843025,-500.0,0.00013698,2]
[334122497,1722787843035,-300.96542035,0.00013698,2]
[334122499,1722787843045,-500.0,0.00013698,2]
[334122501,1722787843055,-351.65619071,0.00013698,2]
[334122503,1722787843064,-500.0,0.00013698,2]
[334122505,1722787843075,-500.0,0.00013698,2]
[334122507,1722787843085,-500.0,0.00013698,2]
[334122509,1722787843095,-500.0,0.00013698,2]
[334122511,1722787843105,-500.0,0.00013698,2]
[334122513,1722787843115,-500.0,0.00013698,2]
[334122515,1722787843124,-500.0,0.00013698,2]
[334122517,1722787843135,-500.0,0.00013698,2]
[334122519,1722787843145,-500.0,0.00013698,2]
[334122523,1722787843156,-500.0,0.00013698,2]
[334122525,1722787843167,-500.0,0.00013698,2]
[334122527,1722787843176,-500.0,0.00013698,2]
[334122529,1722787843186,-500.0,0.00013698,2]
[334122531,1722787843196,-500.0,0.00013698,2]
[334122533,1722787843205,-500.0,0.00013698,2]
[334122536,1722787843215,-500.0,0.00013698,2]
[334122538,1722787843224,-500.0,0.00013698,2]
[334122540,1722787843233,-500.0,0.00013698,2]
[334122542,1722787843242,-500.0,0.00013698,2]
[334122544,1722787843251,-538.53518033,0.00013698,2]
[334122546,1722787843260,-500.0,0.00013698,2]
[334122548,1722787843269,-500.0,0.00013698,2]
[334122550,1722787843279,-500.0,0.00013698,2]
[334122551,1722787843288,-500.0,0.00013698,2]
[334122553,1722787843298,-500.0,0.00013698,2]
[334122555,1722787843307,-500.0,0.00013698,2]
[334122557,1722787843316,-500.0,0.00013698,2]
[334122559,1722787843326,-500.0,0.00013698,2]
[334122561,1722787843335,-500.0,0.00013698,2]
[334122563,1722787843345,-502.24806216,0.00013698,2]
[334122565,1722787843355,-499.99999999,0.00013698,2]
[334122567,1722787843366,-500.0,0.00013698,2]
[334122569,1722787843376,-500.0,0.00013698,2]
[334122571,1722787843386,-500.0,0.00013698,2]
[334122573,1722787843397,-500.0,0.00013698,2]
[334122576,1722787843410,-378.94770609,0.00013698,2]
[334122578,1722787843419,-500.0,0.00013698,2]
[334122580,1722787843430,-464.26906776,0.00013698,2]
[334122582,1722787843440,-500.0,0.00013698,2]
[334122584,1722787843450,-500.0,0.00013698,2]
[334122586,1722787843460,-511.11068816,0.00013698,2]
[334122588,1722787843471,-500.0,0.00013698,2]
[334122590,1722787843480,-259.95533572,0.00013698,2]
[334122593,1722787843490,-515.22777484,0.00013698,2]
[334122617,1722787843629,-500.0,0.00013698,2]
[334122619,1722787843639,-172.31364207,0.00013698,2]
[334122621,1722787843648,-592.84540876,0.00013698,2]
[334122623,1722787843660,-500.0,0.00013698,2]
[334122625,1722787843669,-500.0,0.00013698,2]
[334122627,1722787843679,-500.0,0.00013698,2]
[334122629,1722787843688,-500.0,0.00013698,2]
[334122631,1722787843698,-500.0,0.00013698,2]
[334122633,1722787843707,-500.0,0.00013698,2]
[334122635,1722787843716,-500.0,0.00013698,2]
[334122636,1722787843726,-500.0,0.00013698,2]
[334122638,1722787843735,-500.0,0.00013698,2]
[334122640,1722787843745,-500.0,0.00013698,2]
[334122642,1722787843755,-507.13105688,0.00013698,2]
[334122644,1722787843766,-500.0,0.00013698,2]
[334122647,1722787843777,-500.0,0.00013698,2]
[334122649,1722787843790,-500.0,0.00013698,2]
[334122651,1722787843800,-511.1363515,0.00013698,2]
[334122652,1722787843809,-500.0,0.00013698,2]
[334122654,1722787843819,-500.0,0.00013698,2]
[334122656,1722787843829,-500.0,0.00013698,2]
[334122658,1722787843838,-500.0,0.00013698,2]
[334122660,1722787843847,-500.0,0.00013698,2]
[334122662,1722787843857,-500.0,0.00013698,2]
[334122664,1722787843867,-500.0,0.00013698,2]
[334122666,1722787843876,-319.05137873,0.00013698,2]
[334122668,1722787843886,-513.70913177,0.00013698,2]
[334122670,1722787843896,-500.0,0.00013698,2]
[334122672,1722787843908,-500.0,0.00013698,2]
[334122674,1722787843917,-535.953862,0.00013698,2]
[334122675,1722787843926,-500.0,0.00013698,2]
[334122677,1722787843936,-500.0,0.00013698,2]
[334122679,1722787843945,-500.0,0.00013698,2]
[334122681,1722787843954,-500.0,0.00013698,2]
[334122683,1722787843963,-500.0,0.00013698,2]
[334122685,1722787843973,-471.67904458,0.00013698,2]
[334122687,1722787843982,-151.0,0.00013698,2]
[334122689,1722787843992,-500.0,0.00013698,2]
[334122691,1722787844001,-500.0,0.00013698,2]
[334122693,1722787844011,-151.176751,0.00013698,2]
[334122695,1722787844021,-500.0,0.00013698,2]
[334122697,1722787844030,-505.54303621,0.00013698,2]
[334122699,1722787844040,-500.0,0.00013698,2]
[334122701,1722787844049,-500.0,0.00013698,2]
[334122703,1722787844059,-500.0,0.00013698,2]
[334122705,1722787844068,-500.0,0.00013698,2]
[334122706,1722787844077,-500.0,0.00013698,2]
[334122708,1722787844087,-500.0,0.00013698,2]
[334122710,1722787844096,-500.0,0.00013698,2]
[334122712,1722787844105,-509.96349792,0.00013698,2]
[334122714,1722787844115,-500.0,0.00013698,2]
[334122716,1722787844124,-527.90124887,0.00013698,2]
[334122718,1722787844133,-679.17,0.00013698,2]
[334122720,1722787844143,-592.0,0.00013698,2]
[334122722,1722787844153,-500.0,0.00013698,2]
[334122724,1722787844166,-500.0,0.00013698,2]
[334122726,1722787844176,-223.14955709,0.00013698,2]
[334122728,1722787844185,-500.0,0.00013698,2]
[334122730,1722787844195,-500.0,0.00013698,2]
[334122732,1722787844205,-500.0,0.00013698,2]
[334122734,1722787844215,-500.0,0.00013698,2]
[334122736,1722787844226,-500.0,0.00013698,2]
[334122738,1722787844235,-500.0,0.00013698,2]
[334122740,1722787844246,-500.0,0.00013698,2]
[334122742,1722787844256,-500.0,0.00013698,2]
[334122744,1722787844266,-374.17638685,0.00013698,2]
[334122746,1722787844276,-500.0,0.00013698,2]
[334122748,1722787844286,-448.79228526,0.00013698,2]
[334122750,1722787844296,-500.0,0.00013698,2]
[334122752,1722787844306,-383.99679095,0.00013698,2]
[334122755,1722787844326,-500.0,0.00013698,2]
[334122757,1722787844341,-500.0,0.00013698,2]
[334122759,1722787844351,-500.0,0.00013698,2]
[334122761,1722787844361,-500.0,0.00013698,2]
[334122763,1722787844372,-500.0,0.00013698,2]
[334122765,1722787844382,-500.0,0.00013698,2]
[334122767,1722787844395,-507.56802688,0.00013698,2]
[334122769,1722787844407,-500.0,0.00013698,2]
[334122771,1722787844419,-500.0,0.00013698,2]
[334122773,1722787844429,-487.06573187,0.00013698,2]
[334122775,1722787844440,-500.0,0.00013698,2]
[334122776,1722787844450,-500.0,0.00013698,2]
[334122777,1722787844460,-500.0,0.00013698,2]
[334122778,1722787844470,-500.0,0.00013698,2]
[334122779,1722787844480,-516.82725683,0.00013698,2]
[334122780,1722787844489,-500.0,0.00013698,2]
[334122781,1722787844501,-500.0,0.00013698,2]
[334122782,1722787844512,-500.0,0.00013698,2]
[334122783,1722787844524,-500.0,0.00013698,2]
[334122784,1722787844537,-151.0,0.00013698,2]
[334122785,1722787844547,-503.631483,0.00013698,2]
[334122786,1722787844557,-500.0,0.00013698,2]
[334122787,1722787844567,-500.0,0.00013698,2]
[334122788,1722787844577,-500.0,0.00013698,2]
[334122789,1722787844586,-500.0,0.00013698,2]
[334122790,1722787844596,-500.0,0.00013698,2]
[334122791,1722787844605,-314.79048378,0.00013698,2]
[334122792,1722787844616,-500.0,0.00013698,2]
[334122793,1722787844626,-500.0,0.00013698,2]
[334122794,1722787844635,-500.0,0.00013698,2]
[334122795,1722787844644,-500.0,0.00013698,2]
[334122796,1722787844654,-500.0,0.00013698,2]
[334122797,1722787844665,-500.0,0.00013698,2]
[334122798,1722787844675,-500.0,0.00013698,2]
[334122800,1722787844684,-500.0,0.00013698,2]
[334122802,1722787844693,-476.45,0.00013698,2]
[334122804,1722787844703,-500.0,0.00013698,2]
[334122806,1722787844712,-500.0,0.00013698,2]
[334122808,1722787844722,-797.200145,0.00013698,2]
[334122810,1722787844732,-500.0,0.00013698,2]
[334122812,1722787844741,-500.0,0.00013698,2]
[334122814,1722787844751,-797.200145,0.00013698,2]
[334122816,1722787844760,-151.0,0.00013698,2]
[334122818,1722787844770,-500.0,0.00013698,2]
[334122820,1722787844780,-236.27118631,0.00013698,2]
[334122822,1722787844793,-500.0,0.00013698,2]
[334122824,1722787844803,-500.0,0.00013698,2]
[334122826,1722787844812,-500.0,0.00013698,2]
[334122828,1722787844822,-500.0,0.00013698,2]
[334122830,1722787844832,-500.0,0.00013698,2]
[334122832,1722787844842,-496.67365437,0.00013698,2]
[334122834,1722787844851,-500.0,0.00013698,2]
[334122836,1722787844862,-151.0,0.00013698,2]
[334122838,1722787844873,-278.95062235,0.00013698,2]
[334122840,1722787844883,-500.0,0.00013698,2]
[334122842,1722787844892,-500.0,0.00013698,2]
[334122844,1722787844901,-550.30841927,0.00013698,2]
[334122846,1722787844913,-500.0,0.00013698,2]
[334122848,1722787844922,-500.0,0.00013698,2]
[334122850,1722787844931,-500.0,0.00013698,2]
[334122852,1722787844941,-500.0,0.00013698,2]
[334122854,1722787844951,-500.0,0.00013698,2]
[334122856,1722787844960,-500.0,0.00013698,2]
[334122858,1722787844969,-500.0,0.00013698,2]
[334122860,1722787844979,-500.0,0.00013698,2]
[334122862,1722787844989,-500.0,0.00013698,2]
[334122864,1722787845000,-500.0,0.00013698,2]
[334122866,1722787845010,-500.0,0.00013698,2]
[334122868,1722787845019,-500.0,0.00013698,2]
[334122870,1722787845029,-454.55205968,0.00013698,2]
[334122872,1722787845041,-506.79221079,0.00013698,2]
[334122874,1722787845051,-500.0,0.00013698,2]
[334122876,1722787845061,-500.0,0.00013698,2]
[334122878,1722787845070,-500.0,0.00013698,2]
[334122880,1722787845080,-500.0,0.00013698,2]
[334122882,1722787845089,-500.0,0.00013698,2]
[334122884,1722787845099,-500.0,0.00013698,2]
[334122886,1722787845108,-611.35,0.00013698,2]
[334122888,1722787845118,-500.0,0.00013698,2]
[334122890,1722787845127,-500.0,0.00013698,2]
[334122892,1722787845137,-504.19481892,0.00013698,2]
[334122894,1722787845147,-500.0,0.00013698,2]
[334122896,1722787845160,-500.0,0.00013698,2]
[334122898,1722787845171,-500.0,0.00013698,2]
[334122900,1722787845181,-501.58892371,0.00013698,2]
[334122902,1722787845193,-500.0,0.00013698,2]
[334122904,1722787845203,-500.0,0.00013698,2]
[334122906,1722787845214,-151.0,0.00013698,2]
[334122908,1722787845224,-500.0,0.00013698,2]
[334122910,1722787845233,-151.0,0.00013698,2]
[334122912,1722787845243,-151.830209,0.00013698,2]
[334122914,1722787845254,-500.0,0.00013698,2]
[334122916,1722787845263,-500.0,0.00013698,2]
[334122918,1722787845273,-500.0,0.00013698,2]
[334122920,1722787845283,-500.0,0.00013698,2]
[334122922,1722787845292,-500.0,0.00013698,2]
[334122924,1722787845303,-513.35546755,0.00013698,2]
[334122926,1722787845313,-504.03430303,0.00013698,2]
[334122928,1722787845322,-188.0102848,0.00013698,2]
[334122930,1722787845332,-500.0,0.00013698,2]
[334122932,1722787845341,-250.0,0.00013698,2]
[334122934,1722787845351,-500.0,0.00013698,2]
[334122936,1722787845361,-500.0,0.00013698,2]
[334122938,1722787845371,-500.0,0.00013698,2]
[334122940,1722787845381,-500.0,0.00013698,2]
[334122942,1722787845391,-200.0,0.00013698,2]
[334122944,1722787845402,-500.0,0.00013698,2]
[334122946,1722787845417,-500.0,0.00013698,2]
[334122948,1722787845426,-604.65460521,0.00013698,2]
[334122950,1722787845436,-500.0,0.00013698,2]
[334122952,1722787845446,-500.0,0.00013698,2]
[334122954,1722787845455,-500.0,0.00013698,2]
[334122956,1722787845464,-500.0,0.00013698,2]
[334122958,1722787845474,-1340.08,0.00013698,2]
[334122960,1722787845484,-151.0,0.00013698,2]
[334122962,1722787845494,-500.0,0.00013698,2]
[334122964,1722787845506,-500.0,0.00013698,2]
[334122966,1722787845516,-500.0,0.00013698,2]
[334122968,1722787845526,-500.0,0.00013698,2]
[334122970,1722787845535,-500.0,0.00013698,2]
[334122972,1722787845546,-500.0,0.00013698,2]
[334122974,1722787845556,-347.36219813,0.00013698,2]
[334122976,1722787845566,-500.0,0.00013698,2]
[334122978,1722787845576,-500.0,0.00013698,2]
[334122980,1722787845586,-500.0,0.00013698,2]
[334122982,1722787845596,-500.0,0.00013698,2]
[334122984,1722787845606,-500.0,0.00013698,2]
[334122986,1722787845616,-151.0,0.00013698,2]
[334122988,1722787845626,-500.0,0.00013698,2]
[334122990,1722787845635,-500.0,0.00013698,2]
[334122992,1722787845645,-500.0,0.00013698,2]
[334122994,1722787845655,-500.0,0.00013698,2]
[334122997,1722787845674,-500.0,0.00013698,2]
[334122998,1722787845683,-500.0,0.00013698,2]
[334123000,1722787845693,-500.0,0.00013698,2]
[334123002,1722787845703,-500.0,0.00013698,2]
[334123004,1722787845713,-500.0,0.00013698,2]
[334123006,1722787845722,-500.0,0.00013698,2]
[334123009,1722787845732,-500.0,0.00013698,2]
[334123011,1722787845742,-151.0,0.00013698,2]
[334123013,1722787845752,-500.0,0.00013698,2]
[334123015,1722787845762,-151.0,0.00013698,2]
[334123017,1722787845774,-501.81596992,0.00013698,2]
[334123018,1722787845790,-500.0,0.00013698,2]
[334123020,1722787845799,-500.0,0.00013698,2]
[334123022,1722787845810,-500.0,0.00013698,2]
[334123025,1722787845820,-500.0,0.00013698,2]
[334123027,1722787845830,-326.03432267,0.00013698,2]
[334123028,1722787845840,-500.0,0.00013698,2]
[334123030,1722787845849,-500.0,0.00013698,2]
[334123032,1722787845860,-500.0,0.00013698,2]
[334123034,1722787845870,-500.0,0.00013698,2]
[334123036,1722787845879,-500.0,0.00013698,2]
[334123038,1722787845889,-500.0,0.00013698,2]
[334123040,1722787845898,-500.0,0.00013698,2]
[334123042,1722787845909,-500.0,0.00013698,2]
[334123044,1722787845919,-500.0,0.00013698,2]
[334123046,1722787845928,-151.0,0.00013698,2]
[334123048,1722787845938,-500.0,0.00013698,2]
[334123050,1722787845948,-500.0,0.00013698,2]
[334123052,1722787845957,-509.02547828,0.00013698,2]
[334123054,1722787845967,-151.0,0.00013698,2]
[334123056,1722787845976,-500.0,0.00013698,2]
[334123058,1722787845985,-500.0,0.00013698,2]
[334123060,1722787845995,-500.0,0.00013698,2]
[334123062,1722787846004,-151.0,0.00013698,2]
[334123064,1722787846014,-338.0212818,0.00013698,2]
[334123066,1722787846023,-500.0,0.00013698,2]
[334123068,1722787846032,-729.57,0.00013698,2]
[334123070,1722787846041,-151.0,0.00013698,2]
[334123072,1722787846050,-500.0,0.00013698,2]
[334123074,1722787846059,-151.0,0.00013698,2]
[334123076,1722787846070,-310.288247,0.00013698,2]
[334123078,1722787846079,-582.73,0.00013698,2]
[334123080,1722787846088,-500.0,0.00013698,2]
[334123082,1722787846098,-310.288247,0.00013698,2]
[334123084,1722787846108,-500.0,0.00013698,2]
[334123086,1722787846118,-500.0,0.00013698,2]
[334123088,1722787846127,-500.0,0.00013698,2]
[334123090,1722787846137,-500.0,0.00013698,2]
[334123092,1722787846146,-524.57847324,0.00013698,2]
[334123094,1722787846158,-500.0,0.00013698,2]
[334123096,1722787846167,-500.0,0.00013698,2]
[334123098,1722787846177,-500.0,0.00013698,2]
[334123100,1722787846186,-500.0,0.00013698,2]
[334123102,1722787846195,-500.0,0.00013698,2]
[334123104,1722787846204,-500.0,0.00013698,2]
[334123106,1722787846213,-500.0,0.00013698,2]
[334123108,1722787846223,-500.0,0.00013698,2]
[334123110,1722787846232,-500.0,0.00013698,2]
[334123112,1722787846242,-500.0,0.00013698,2]
[334123114,1722787846251,-3652.44,0.00013698,2]
[334123116,1722787846261,-500.0,0.00013698,2]
[334123118,1722787846270,-226.45757065,0.00013698,2]
[334123120,1722787846279,-500.0,0.00013698,2]
[334123122,1722787846288,-1046.21,0.00013698,2]
[334123137,1722787846421,-151.0,0.00013698,2]
[334123139,1722787846432,-500.0,0.00013698,2]
[334123141,1722787846441,-151.0,0.00013698,2]